fUSD/lending_fUSD_20241123
["ID","MTS","AMOUNT","RATE_DAILY","PERIOD"]
[343095447,1732349454700,-515.9581641,0.00056999,120]
[343095448,1732349454709,-512.96046292,0.00056999,120]
[343095449,1732349454719,-507.16341449,0.00056999,120]
[343095450,1732349454728,-520.46093623,0.00056999,120]
[343095451,1732349454738,-509.01964408,0.00056999,120]
[343095452,1732349454748,-515.48654755,0.00056999,120]
[343095453,1732349454757,-507.40452747,0.00056999,120]
[343095454,1732349454766,-504.8356805,0.00056999,120]
[343095455,1732349454776,-517.57968551,0.00056999,120]
[343095456,1732349454785,-508.83567787,0.00056999,120]
[343095457,1732349454795,-503.52747168,0.00056999,120]
[343095458,1732349454804,-528.22479226,0.00056999,120]
[343095459,1732349454814,-515.93109902,0.00056999,120]
[343095460,1732349454824,-505.04058292,0.00056999,120]
[343095461,1732349454833,-574.76720022,0.00056999,120]
[343095462,1732349454843,-513.72965908,0.00056999,120]
[343095463,1732349454852,-511.6670758,0.00056999,120]
[343095464,1732349454861,-505.12261679,0.00056999,120]
[343095465,1732349454871,-517.40032044,0.00056999,120]
[343095466,1732349454880,-416.30160554,0.00056999,120]
[343095467,1732349454889,-512.73987071,0.00056999,120]
[343095468,1732349454901,-512.14968064,0.00056999,120]
[343095469,1732349454910,-511.9806523,0.00056999,120]
[343095470,1732349454919,-507.43187625,0.00056999,120]
[343095471,1732349454929,-518.42321468,0.00056999,120]
[343095472,1732349455003,-372.59654055,0.00056999,120]
[343095473,1732349455013,-507.29814709,0.00056999,120]
[343095474,1732349455022,-500.0,0.00056999,120]
[343095475,1732349455032,-500.0,0.00056999,120]
[343095476,1732349455041,-513.29082216,0.00056999,120]
[343095477,1732349455051,-642.95188385,0.00056999,120]
[343095478,1732349455060,-509.33843463,0.00056999,120]
[343095479,1732349455069,-500.0,0.00056999,120]
[343095480,1732349455078,-176.7055129,0.00056999,120]
[343095481,1732349455087,-500.0,0.00056999,120]
[343095482,1732349455096,-567.01,0.00056999,120]
[343095483,1732349455105,-500.0,0.00056999,120]
[343095484,1732349455114,-500.0,0.00056999,120]
[343095485,1732349455123,-474.16,0.00056999,120]
[343095486,1732349455132,-259.04,0.00056999,120]
[343095487,1732349455143,-500.0,0.00056999,120]
[343095488,1732349455153,-500.0,0.00056999,120]
[343095489,1732349455162,-415511.10092483,0.00057,120]
[343095490,1732349455171,-1163.67348,0.00057,82]
[343095491,1732349455180,-252.7895,0.00057143,120]
[343095492,1732349455189,-327.7735,0.0005726,120]
[343095493,1732349455199,-243.98,0.00057378,2]
[343095494,1732349455208,-460.6772,0.00057494,2]
[343095495,1732349455218,-1000.0,0.00057494,2]
[343095496,1732349455228,-1000.0,0.00057494,2]
[343095497,1732349455238,-1000.0,0.00057494,2]
[343095498,1732349455247,-1000.0,0.00057494,2]
[343095499,1732349455257,-1000.0,0.00057494,2]
[343095500,1732349455266,-1000.0,0.00057494,2]
[343095501,1732349455275,-1000.0,0.00057494,2]
[343095502,1732349455284,-1000.0,0.00057494,2]
[343095503,1732349455294,-1000.0,0.00057494,2]
[343095504,1732349455303,-1000.0,0.00057494,2]
[343095505,1732349455313,-1000.0,0.00057494,2]
[343095506,1732349455322,-1000.0,0.00057494,2]
[343095507,1732349455331,-1000.0,0.00057494,2]
[343095508,1732349455340,-1000.0,0.00057494,2]
[343095509,1732349455349,-1000.0,0.00057494,2]
[343095510,1732349455358,-1000.0,0.00057494,2]
[343095511,1732349455368,-1000.0,0.00057494,2]
[343095512,1732349455377,-1000.0,0.00057494,2]
[343095513,1732349455386,-1000.0,0.00057494,2]
[343095514,1732349455397,-1000.0,0.00057494,2]
[343095515,1732349455407,-1000.0,0.00057494,2]
[343095516,1732349455417,-1000.0,0.00057494,2]
[343095517,1732349455427,-1000.0,0.00057494,2]
[343095518,1732349455437,-1000.0,0.00057494,2]
[343095519,1732349455447,-1000.0,0.00057494,2]
[343095520,1732349455457,-1000.0,0.00057494,2]
[343095521,1732349455466,-1000.0,0.00057494,2]
[343095522,1732349455476,-635.1701,0.00057494,2]
[343095523,1732349455486,-188.77,0.00057532,2]
[343095524,1732349455495,-4650.90059921,0.00057726,120]
[343095525,1732349455506,-150.0,0.00057946,60]
[343095526,1732349455515,-362.3,0.00058018,60]
[343095527,1732349455525,-433.75,0.00058018,60]
[343095528,1732349455534,-150.54,0.00058228,120]
[343095529,1732349455544,-156.3025,0.00058353,120]
[343095530,1732349455554,-1650.36374669,0.00058394,120]
[343095531,1732349455563,-290.95121311,0.0005841,30]
[343095532,1732349455573,-2064.0,0.000585,120]
[343095533,1732349455582,-2110.0,0.000585,30]
[343095534,1732349455594,-1000.0,0.000585,7]
[343095535,1732349455608,-1164.32,0.0005855,2]
[343095536,1732349455618,-2560.89287524,0.00058589,15]
[343095537,1732349455628,-1000.0,0.000586,7]
[343095538,1732349455638,-643.26,0.00058605,120]
[343095539,1732349455652,-1000.0,0.000587,7]
[343095540,1732349455662,-573.29567129,0.00058724,2]
[343095541,1732349455672,-1000.0,0.000588,30]
[343095542,1732349455684,-200.0,0.00058919,2]
[343095543,1732349455693,-159.0,0.00059,25]
[343095544,1732349455704,-12788.35913228,0.00059,2]
[343095545,1732349455713,-2129.57,0.00059,30]
[343095546,1732349455724,-553.0,0.00059,3]
[343095547,1732349455734,-150.0,0.00059,120]
[343095548,1732349455743,-158.0,0.00059,78]
[343095549,1732349455753,-3467.7694826,0.00059018,2]
[343095550,1732349455763,-2220.3698369,0.00059018,2]
[343095551,1732349455774,-151.62,0.00059048,120]
[343095552,1732349455784,-603.0641359,0.00059058,2]
[343095553,1732349455794,-1000.0,0.000592,7]
[343095554,1732349455804,-356.74,0.00059392,120]
[343095555,1732349455814,-222.21175,0.00059532,120]
[343095556,1732349455823,-150.0,0.00059615,60]
[343095557,1732349455833,-150.0,0.00059615,60]
[343095558,1732349455843,-166.12,0.00059692,2]
[343095559,1732349455852,-2500.0,0.00059729,9]
[343095560,1732349455862,-2500.0,0.00059729,9]
[343095561,1732349455871,-379.01185571,0.00059773,2]
[343095562,1732349455881,-151.62,0.0005979,120]
[343095563,1732349455893,-20000.0,0.00059798,61]
[343095564,1732349455904,-500.0,0.00059799,120]
[343095565,1732349455914,-522.8130113,0.00059799,30]
[343095566,1732349455924,-500.0,0.00059799,120]
[343095567,1732349455933,-494.81638,0.00059799,120]
[343095568,1732349455943,-461.6000344,0.00059799,120]
[343095569,1732349455952,-508.16436885,0.00059799,120]
[343095570,1732349455961,-500.0,0.00059799,120]
[343095571,1732349455970,-500.0,0.00059799,120]
[343095572,1732349455980,-500.0,0.00059799,120]
[343095573,1732349455989,-500.0,0.00059799,120]
[343095574,1732349455999,-286.46280681,0.00059799,120]
[343095575,1732349456008,-500.0,0.00059799,120]
[343095576,1732349456018,-500.0,0.00059799,120]
[343095577,1732349456027,-192.42591811,0.000598,120]
[343095578,1732349456036,-217.67596417,0.000598,120]
[343095579,1732349456045,-411.50950803,0.000598,120]
[343095580,1732349456055,-439.22274888,0.000598,120]
[343095581,1732349456064,-501.064,0.000598,120]
[343095582,1732349456074,-1517.8892864,0.000598,120]
[343095583,1732349456083,-78564.38067695,0.000598,120]
[343095584,1732349456093,-1358.79835444,0.000598,120]
[343095585,1732349456103,-7500.0,0.000598,120]
[343095586,1732349456113,-416.76702936,0.000598,120]
[343095587,1732349456122,-8629.19453085,0.000598,120]
[343095588,1732349456131,-86857.37203792,0.000598,120]
[343095589,1732349456141,-4470.69362805,0.000598,120]
[343095590,1732349456153,-9485.18315534,0.000598,120]
[343095591,1732349456163,-326859.16124334,0.000598,120]
[343095592,1732349456173,-4859.22515269,0.000598,120]
[343095593,1732349456183,-800.0,0.000598,21]
[343095594,1732349456192,-150.54,0.00059824,120]
[343095595,1732349456202,-1181.0,0.00059861,3]
[343095596,1732349456211,-229.0,0.000599,30]
[343095597,1732349456223,-1300.0,0.000599,21]
[343095598,1732349456232,-363.0,0.000599,30]
[343095599,1732349456243,-151.62,0.0005999,120]
[343095600,1732349456252,-151.62,0.0005999,120]
[343095601,1732349456261,-500.0,0.00059999,120]
[343095602,1732349456271,-500.0,0.00059999,120]
[343095603,1732349456281,-300.0,0.00059999,30]
[343095604,1732349456291,-500.0,0.00059999,120]
[343095605,1732349456300,-500.0,0.00059999,120]
[343095606,1732349456310,-500.0,0.00059999,120]
[343095607,1732349456319,-600.0,0.0006,120]
[343095608,1732349456329,-200.0,0.0006,120]
[343095609,1732349456339,-500000.0,0.0006,120]
[343095610,1732349456348,-22476.74167956,0.0006,60]
[343095611,1732349456358,-300.0,0.0006,2]
[343095612,1732349456367,-6477.61690064,0.0006,120]
[343095613,1732349456377,-50000.0,0.0006,36]
[343095614,1732349456387,-41991.47448576,0.0006,120]
[343095615,1732349456400,-10020.01195492,0.0006,30]
[343095616,1732349456410,-375.0,0.0006,119]
[343095617,1732349456421,-150.0,0.0006,120]
[343095618,1732349456431,-500.0,0.00060009,120]
[343095619,1732349456442,-107537.97294204,0.0006001,2]
[343095620,1732349456453,-29013.79278,0.0006001,2]
[343095621,1732349456462,-500.0,0.00060047,120]
[343095622,1732349456472,-243.98,0.0006011,2]
[343095623,1732349456482,-529.31938475,0.00060118,120]
[343095624,1732349456491,-252.7895,0.00060142,120]
[343095625,1732349456501,-1000.0,0.00060208,120]
[343095626,1732349456511,-500.0,0.00060223,120]
[343095627,1732349456521,-38271.93995324,0.00060223,120]
[343095628,1732349456530,-327.7735,0.00060227,120]
[343095629,1732349456540,-3542.04,0.00060273,120]
[343095630,1732349456550,-3542.04,0.00060273,120]
[343095631,1732349456560,-3542.04,0.00060273,120]
[343095632,1732349456569,-3542.04,0.00060273,120]
[343095633,1732349456579,-3542.04,0.00060273,120]
[343095634,1732349456590,-3542.04,0.00060273,120]
[343095635,1732349456602,-3542.04,0.00060273,120]
[343095636,1732349456612,-3542.04,0.00060273,120]
[343095637,1732349456622,-3542.04,0.00060273,120]
[343095638,1732349456634,-3070.35,0.00060274,120]
[343095639,1732349456644,-8836.8574712,0.000603,120]
[343095640,1732349456654,-166.69,0.00060363,2]
[343095641,1732349456664,-277.79,0.0006041,60]
[343095642,1732349456674,-150.0,0.00060437,60]
[343095643,1732349456686,-500.0,0.0006052,120]
[343095644,1732349456696,-1164.32,0.00060814,2]
[343095645,1732349456706,-500.0,0.00060865,120]
[343095646,1732349456717,-1700.0,0.000609,22]
[343095647,1732349456727,-491.1,0.00060982,60]
[343095648,1732349456737,-424.7,0.00060982,60]
[343095649,1732349456747,-151.62,0.0006099,120]
[343095650,1732349456757,-151.62,0.0006099,120]
[343095651,1732349456767,-500.0,0.00060999,120]
[343095652,1732349456777,-500.0,0.00060999,120]
[343095653,1732349456787,-3542.04,0.00060999,120]
[343095654,1732349456797,-3542.04,0.00060999,120]
[343095655,1732349456807,-500.0,0.00060999,120]
[343095656,1732349456816,-500.0,0.00060999,120]
[343095657,1732349456827,-500000.0,0.00061,120]
[343095658,1732349456836,-200.0,0.00061,120]
[343095659,1732349456846,-2560.89287524,0.00061003,15]
[343095660,1732349456856,-500.0,0.00061137,120]
[343095661,1732349456865,-314.29,0.00061256,60]
[343095662,1732349456875,-150.0,0.00061256,60]
[343095663,1732349456885,-300.0,0.00061256,60]
[343095664,1732349456895,-150.0,0.00061256,60]
[343095665,1732349456906,-195.83,0.00061283,120]
[343095666,1732349456916,-160.95,0.00061283,120]
[343095667,1732349456927,-150.54,0.0006142,120]
[343095668,1732349456938,-1600.0,0.00061448,120]
[343095669,1732349456948,-168.5,0.00061482,2]
[343095670,1732349456958,-188.77,0.00061496,2]
[343095671,1732349456968,-173.112316,0.00061498,120]
[343095672,1732349456977,-500.0,0.00061659,120]
[343095673,1732349456986,-810.03,0.00061935,60]
[343095674,1732349456995,-448.55,0.00061935,60]
[343095675,1732349457005,-340.79968882,0.00062,120]
[343095676,1732349457015,-200.0,0.00062,120]
[343095677,1732349457025,-414.51554507,0.00062,120]
[343095678,1732349457035,-1163.67348,0.00062,82]
[343095679,1732349457044,-150.0,0.00062072,60]
[343095680,1732349457054,-725.58,0.00062072,60]
[343095681,1732349457064,-150.0,0.00062072,60]
[343095682,1732349457073,-865.25,0.00062072,60]
[343095683,1732349457083,-150.0,0.00062072,60]
[343095684,1732349457092,-150.0,0.00062072,60]
[343095685,1732349457102,-150.0,0.00062072,60]
[343095686,1732349457111,-150.0,0.00062072,60]
[343095687,1732349457121,-150.0,0.00062072,60]
[343095688,1732349457131,-150.0,0.00062072,60]
[343095689,1732349457141,-150.0,0.00062072,60]
[343095690,1732349457153,-150.0,0.00062072,60]
[343095691,1732349457163,-500.0,0.00062128,120]
[343095692,1732349457173,-638.14242477,0.00062433,120]
[343095693,1732349457183,-222.21175,0.00062756,120]
[343095694,1732349457193,-40701.23009965,0.000628,120]
[343095695,1732349457203,-243.98,0.00062842,2]
[343095696,1732349457212,-500.0,0.00062999,120]
[343095697,1732349457222,-3542.04,0.00062999,120]
[343095698,1732349457232,-33798.42514039,0.00063,10]
[343095699,1732349457242,-15896.0,0.00063,120]
[343095700,1732349457251,-500.0,0.00063013,120]
[343095701,1732349457261,-567.52120653,0.00063013,120]
[343095702,1732349457271,-150.54,0.00063015,120]
[343095703,1732349457281,-1164.32,0.00063078,2]
[343095704,1732349457291,-252.7895,0.00063141,120]
[343095705,1732349457301,-327.7735,0.00063194,120]
[343095706,1732349457311,-2560.89287524,0.00063417,15]
[343095707,1732349457320,-935.756,0.00063457,120]
[343095708,1732349457330,-3517.0,0.00063457,120]
[343095709,1732349457340,-159.17,0.00063507,120]
[343095710,1732349457349,-150.0,0.0006353,2]
[343095711,1732349457359,-433.47,0.00063588,60]
[343095712,1732349457368,-1600.0,0.00063842,120]
[343095713,1732349457377,-358.89,0.00063863,2]
[343095714,1732349457386,-167.52,0.00063867,2]
[343095715,1732349457398,-425.06,0.00063935,120]
[343095716,1732349457408,-500.0,0.00063999,120]
[343095717,1732349457418,-50000.0,0.00064,120]
[343095718,1732349457427,-964.6037099,0.00064,120]
[343095719,1732349457437,-578.0,0.00064,2]
[343095720,1732349457446,-500.0,0.00064284,120]
[343095721,1732349457455,-500.0,0.00064383,120]
[343095722,1732349457465,-500.0,0.00064383,120]
[343095723,1732349457474,-521.45777798,0.00064383,120]
[343095724,1732349457484,-200.0,0.000644,120]
[343095725,1732349457494,-500.0,0.00064455,120]
[343095726,1732349457504,-150.112316,0.00064498,120]
[343095727,1732349457514,-150.54,0.00064611,120]
[343095728,1732349457524,-1600.0,0.00064694,120]
[343095729,1732349457535,-1258.297,0.00064702,120]
[343095730,1732349457546,-13666.0,0.00064702,120]
[343095731,1732349457559,-5944.0,0.00064702,120]
[343095732,1732349457570,-164.962,0.00064702,2]
[343095733,1732349457580,-177.958,0.00064702,120]
[343095734,1732349457589,-500.0,0.00064719,120]
[343095735,1732349457600,-10000.0,0.00064942,6]
[343095736,1732349457612,-200.0,0.00065,2]
[343095737,1732349457622,-45000.0,0.00065,36]
[343095738,1732349457631,-33912.12545852,0.00065,60]
[343095739,1732349457641,-156.69,0.00065068,120]
[343095740,1732349457654,-300.0,0.00065259,60]
[343095741,1732349457667,-300.0,0.00065259,60]
[343095742,1732349457678,-187.66,0.00065259,60]
[343095743,1732349457689,-370.76,0.00065259,60]
[343095744,1732349457698,-362.86,0.00065259,60]
[343095745,1732349457708,-433.75,0.00065259,60]
[343095746,1732349457718,-433.75,0.00065259,60]
[343095747,1732349457728,-362.86,0.00065259,60]
[343095748,1732349457738,-433.75,0.00065259,60]
[343095749,1732349457748,-362.86,0.00065259,60]
[343095750,1732349457758,-866.48,0.00065259,60]
[343095751,1732349457768,-1164.32,0.00065341,2]
[343095752,1732349457778,-505.45301233,0.00065479,120]
[343095753,1732349457787,-243.98,0.00065575,2]
[343095754,1732349457797,-500.0,0.00065651,120]
[343095755,1732349457808,-500.0,0.00065753,120]
[343095756,1732349457818,-3542.04,0.00065753,120]
[343095757,1732349457829,-44332.54,0.00065753,30]
[343095758,1732349457839,-2560.89287524,0.00065831,15]
[343095759,1732349457848,-643.26,0.00065931,120]
[343095760,1732349457858,-356.74,0.00065991,120]
[343095761,1732349457867,-350.0,0.00066,120]
[343095762,1732349457877,-358.89,0.00066122,2]
[343095763,1732349457886,-1600.0,0.00066182,120]
[343095764,1732349457900,-150.54,0.00066206,120]
[343095765,1732349457911,-500.0,0.00066238,120]
[343095766,1732349458037,-153.79,0.000663,66]
[343095767,1732349458047,-153.79,0.000663,66]
[343095768,1732349458056,-153.79,0.000663,66]
[343095769,1732349458066,-153.79,0.000663,66]
[343095770,1732349458076,-153.79,0.000663,66]
[343095771,1732349458085,-153.79,0.000663,66]
[343095772,1732349458096,-153.79,0.000663,66]
[343095773,1732349458105,-153.79,0.000663,66]
[343095774,1732349458115,-195.83,0.0006633,120]
[343095775,1732349458124,-160.95,0.0006633,120]
[343095776,1732349458134,-918.0,0.00066457,120]
[343095777,1732349458145,-3517.0,0.00066457,120]
[343095778,1732349458156,-500.0,0.00066575,120]
[343095779,1732349458166,-322.81190781,0.00066599,120]
[343095780,1732349458175,-5952.56845687,0.000666,120]
[343095781,1732349458185,-1969.971,0.00066659,120]
[343095782,1732349458195,-1000.0,0.00066898,120]
[343095783,1732349458206,-13944.31840146,0.00067,2]
[343095784,1732349458216,-1163.67348,0.00067,82]
[343095785,1732349458225,-500.0,0.00067075,120]
[343095786,1732349458235,-200.0,0.00067147,2]
[343095787,1732349458244,-150.0,0.00067147,120]
[343095788,1732349458254,-203.576,0.00067147,120]
[343095789,1732349458263,-155.311,0.00067147,120]
[343095790,1732349458272,-206.446,0.00067147,120]
[343095791,1732349458281,-1257.0,0.00067147,120]
[343095792,1732349458290,-1996.0,0.00067147,120]
[343095793,1732349458301,-296.708,0.00067147,120]
[343095794,1732349458318,-634.706,0.00067147,120]
[343095795,1732349458328,-561.0,0.00067147,120]
[343095796,1732349458337,-1928.0,0.00067147,120]
[343095797,1732349458346,-3750.0,0.00067147,120]
[343095798,1732349458356,-1261.0,0.00067147,120]
[343095799,1732349458365,-815.0,0.00067147,2]
[343095800,1732349458374,-1600.0,0.00067176,120]
[343095801,1732349458383,-343.02819985,0.00067423,2]
[343095802,1732349458392,-500.0,0.00067442,120]
[343095803,1732349458404,-173.112316,0.00067498,120]
[343095804,1732349458413,-1164.32,0.00067605,2]
[343095805,1732349458423,-1162.0,0.00067702,120]
[343095806,1732349458432,-13666.0,0.00067702,120]
[343095807,1732349458442,-5944.0,0.00067702,120]
[343095808,1732349458451,-150.0,0.00067702,2]
[343095809,1732349458461,-150.0,0.00067702,120]
[343095810,1732349458471,-150.54,0.00067802,120]
[343095811,1732349458480,-500.0,0.00067974,120]
[343095812,1732349458491,-14515.54468894,0.00068,120]
[343095813,1732349458511,-2560.89287524,0.00068244,15]
[343095814,1732349458527,-358.89,0.00068381,2]
[343095815,1732349458538,-200.0,0.000684,120]
[343095816,1732349458548,-2500.0,0.00068493,120]
[343095817,1732349458557,-1169.55400002,0.00068493,120]
[343095818,1732349458567,-1000.0,0.00068493,120]
[343095819,1732349458577,-232.1919002,0.00068493,120]
[343095820,1732349458586,-520.30084276,0.00068493,120]
[343095821,1732349458597,-1000.0,0.00068493,120]
[343095822,1732349458612,-1000.0,0.00068493,120]
[343095823,1732349458622,-1000.0,0.00068493,120]
[343095824,1732349458633,-1000.0,0.00068493,120]
[343095825,1732349458643,-1000.0,0.00068493,120]
[343095826,1732349458655,-1000.0,0.00068493,120]
[343095827,1732349458664,-1000.0,0.00068493,120]
[343095828,1732349458675,-1000.0,0.00068493,120]
[343095829,1732349458684,-1000.0,0.00068493,120]
[343095830,1732349458694,-1000.0,0.00068493,120]
[343095831,1732349458705,-1000.0,0.00068493,120]
[343095832,1732349458714,-1000.0,0.00068493,120]
[343095833,1732349458724,-1000.0,0.00068493,120]
[343095834,1732349458736,-2500.0,0.00068493,120]
[343095835,1732349458745,-300.0,0.00068493,120]
[343095836,1732349458755,-200.0,0.000685,30]
[343095837,1732349458764,-500.0,0.000685,30]
[343095838,1732349458774,-200.0,0.000685,30]
[343095839,1732349458784,-500.0,0.00068556,120]
[343095840,1732349458795,-500.0,0.00068767,120]
[343095841,1732349458804,-5000.0,0.00068767,120]
[343095842,1732349458814,-2200.0,0.000689,25]
[343095843,1732349458823,-1696.29905441,0.000689,2]
[343095844,1732349458833,-266.66666668,0.000689,2]
[343095845,1732349458842,-255.65922905,0.000689,2]
[343095846,1732349458852,-1600.0,0.00068912,120]
[343095847,1732349458862,-500.0,0.00068931,120]
[343095848,1732349458871,-20000.0,0.00068987,120]
[343095849,1732349458881,-1000.0,0.00068999,120]
[343095850,1732349458891,-1000.0,0.00068999,120]
[343095851,1732349458903,-689.16309643,0.00068999,120]
[343095852,1732349458912,-500.0,0.00068999,120]
[343095853,1732349458922,-500.0,0.00068999,120]
[343095854,1732349458931,-500.0,0.00068999,120]
[343095855,1732349458940,-500.0,0.00068999,120]
[343095856,1732349458951,-3542.04,0.00068999,120]
[343095857,1732349458961,-3542.04,0.00068999,120]
[343095858,1732349458971,-3542.04,0.00068999,120]
[343095859,1732349458981,-3542.04,0.00068999,120]
[343095860,1732349458991,-67350.8073527,0.00069,120]
[343095861,1732349459118,-540.10218051,0.00056799,120]
[343095862,1732349459129,-232459.63564224,0.00069,120]
[343095863,1732349459141,-28299.36993343,0.00069,120]
[343095864,1732349459202,-893.16546089,0.00069,120]
[343095865,1732349459214,-5522.43577309,0.00069,120]
[343095866,1732349459226,-1215.12844844,0.00069,120]
[343095867,1732349459955,-897.56422115,0.00069,120]
[343095868,1732349459967,-445.32816504,0.00069,120]
[343095869,1732349460103,-301.60528413,0.00055999,120]
[343095870,1732349460115,-198.39471587,0.00055999,120]
[343095871,1732349460126,-393.69097478,0.00056973,15]
[343095872,1732349460138,-106.30902522,0.00056973,15]
[343095873,1732349460149,-933.06153457,0.00057521,15]
[343095874,1732349460277,-74.82580104,0.00057521,15]
[343095875,1732349460287,-1094.0,0.00064702,120]
[343095876,1732349460297,-1094.0,0.00067702,120]
[343095877,1732349460307,-122.65239099,0.00069,120]
[343095878,1732349460319,-1592.42457867,0.00069,120]
[343095879,1732349460331,-323.79921957,0.00069,120]
[343095880,1732349460343,-984.51205423,0.00069,120]
[343095881,1732349460355,-5299.05647541,0.00069,120]
[343095882,1732349460366,-15001.73943915,0.00069,120]
[343095883,1732349460377,-1694.848261,0.00069,120]
[343095884,1732349460389,-9824.99196098,0.00069,120]
[343095885,1732349460542,-918.87289225,0.00069,120]
[343095886,1732349460553,-3206.4969001,0.00069,120]
[343095887,1732349460565,-513.48613182,0.00069,120]
[343095888,1732349460576,-5894.09940071,0.00069,120]
[343095889,1732349460588,-25040.30416994,0.00069,120]
[343095890,1732349460600,-964.24155705,0.00069,120]
[343095891,1732349460639,-261.13556081,0.00056799,120]
[343095892,1732349460652,-11947.57203379,0.00069,120]
[343095893,1732349460664,-8027.50557968,0.00069,120]
[343095894,1732349460680,-586.74999734,0.00069,120]
[343095895,1732349460692,-5969.19420429,0.00069,120]
[343095896,1732349460703,-2460.10469906,0.00069,120]
[343095897,1732349460715,-19566.78957841,0.00069,120]
[343095898,1732349460746,-1696.57111025,0.00069,120]
[343095899,1732349460757,-318.33091079,0.00069,120]
[343095900,1732349460773,-4117.87812077,0.00069,120]
[343095901,1732349460784,-3151.34005637,0.00069,120]
[343095902,1732349460821,-749.71810075,0.00054594,60]
[343095903,1732349493459,500.0,0.0005,120]
[343095905,1732349567404,150.0,0.00041096,2]
[343095906,1732349567431,8.33,0.00041096,2]
[343095908,1732349840236,-2880.85043789,0.000492,5]
[343095909,1732349840262,-499.9531,0.00051658,120]
[343095910,1732349840288,-658.3314,0.00053436,2]
[343095911,1732349840314,-395.5352,0.00053436,2]
[343095912,1732349840341,-250.0,0.000535,120]
[343095913,1732349840366,-4632.3896,0.0005458,2]
[343095914,1732349840394,-112.48169925,0.00054594,60]
[343095915,1732349840420,-446.8958,0.00054594,2]
[343095916,1732349840447,-2399.8099,0.00054594,2]
[343095917,1732349840473,-1000.0,0.00054594,2]
[343095918,1732349840498,-521.4298,0.00054594,2]
[343095919,1732349840523,-86202.32306286,0.00054594,2]
[343095920,1732349989893,-642.67360264,0.00054494,2]
[343095921,1732349989921,-13797.67693714,0.00054594,2]
[343095922,1732349989952,-292.6704,0.00054594,2]
[343095923,1732349989982,-1181.982,0.00054594,103]
[343095924,1732349990011,-184.937,0.00054594,103]
[343095925,1732349990040,-50699.999999,0.0005468,120]
[343095926,1732349990068,-1729.38,0.0005468,30]
[343095927,1732349990099,-524.0,0.00054795,120]
[343095928,1732349990127,-150.0,0.00055,120]
[343095929,1732349990154,-150.0,0.00055,120]
[343095930,1732350038653,195.5884,0.00027,120]
[343095932,1732350260617,152.31,0.00041096,2]
[343095933,1732350308475,495448.02455772,0.00013,2]
[343095934,1732350308522,500000.0,0.00013,2]
[343095935,1732350308555,149774.2,0.00013,2]
[343095936,1732350308608,1000000.0,0.00013,2]
[343095937,1732350308681,100000.0,0.00013,2]
[343095938,1732350308738,1000000.0,0.00013,2]
[343095939,1732350308768,31587.0279,0.00013,2]
[343095940,1732350308795,2540000.0,0.00013,2]
[343095941,1732350308822,62000.0,0.00013,2]
[343095942,1732350308853,22767775.73460212,0.00013,2]
[343095943,1732350308929,9847.80539591,0.0001,2]
[343095945,1732350326323,150.0,0.000108,2]
[343095946,1732350326344,150.0,0.000108,2]
[343095947,1732350326365,78.35376158,0.000108,2]
[343095948,1732350342498,71.64623842,0.0004,2]
[343095949,1732350342519,150.0,0.0004,2]
[343095950,1732350342540,150.0,0.0004,2]